[Event "Titled Tuesday Blitz December 27 Late 2022"]
[White "Bok, Benjamin"]
[Black "Domingo Nunez, Ruben"]
[WhiteFideId "1017063"]
[BlackFideId "22245570"]
[WhiteElo "2607"]
[BlackElo "2416"]
[Result "1-0"]
[Round "09"]
[TimeControl "180+2"]
[Date "2022.12.27"]
[WhiteClock "0:01:35"]
[BlackClock "0:02:25"]

1. d4 {[%clk 0:02:41]}  g6 {[%clk 0:02:59]} 2. e4 {[%clk 0:02:40]}  Bg7 {[%clk 0:03:00]} 3. Nf3 {[%clk 0:02:40]}  c6 {[%clk 0:03:00]} 4. Be2 {[%clk 0:02:39]}  d5 {[%clk 0:03:01]} 5. e5 {[%clk 0:02:39]}  f6 {[%clk 0:03:02]} 6. O-O {[%clk 0:02:25]}  Bg4 {[%clk 0:03:02]} 7. Nbd2 {[%clk 0:02:08]}  fxe5 {[%clk 0:02:56]} 8. Nxe5 {[%clk 0:02:06]}  Bxe2 {[%clk 0:02:55]} 9. Qxe2 {[%clk 0:02:07]}  Nd7 {[%clk 0:02:55]} 10. Ndf3 {[%clk 0:02:04]}  Ngf6 {[%clk 0:02:53]} 11. Ng5 {[%clk 0:01:49]}  Qb6 {[%clk 0:02:32]} 12. Nef7 {[%clk 0:01:35]}  Rf8 {[%clk 0:02:27]} 13. Nd6+ {[%clk 0:01:34]}  Kd8 {[%clk 0:02:25]} 14. Ne6# {[%clk 0:01:35]} 1-0


[Site "https://www.chess.com"]

[Event "Titled Tuesday Blitz December 27 Late 2022"]
[White "Bortnyk, Olexandr"]
[Black "Theodorou, Nikolas"]
[WhiteFideId "14120828"]
[BlackFideId "4262875"]
[WhiteElo "2605"]
[BlackElo "2591"]
[Result "1-0"]
[Round "09"]
[TimeControl "180+2"]
[Date "2022.12.27"]
[WhiteClock "0:00:04"]
[BlackClock "0:00:01"]

1. e4 {[%clk 0:03:00]}  c5 {[%clk 0:03:00]} 2. c3 {[%clk 0:03:00]}  e5 {[%clk 0:02:56]} 3. Nf3 {[%clk 0:02:59]}  Nc6 {[%clk 0:02:57]} 4. Bc4 {[%clk 0:02:59]}  Nf6 {[%clk 0:02:57]} 5. Ng5 {[%clk 0:02:42]}  d5 {[%clk 0:02:58]} 6. exd5 {[%clk 0:02:31]}  Nxd5 {[%clk 0:02:59]} 7. d4 {[%clk 0:01:48]}  cxd4 {[%clk 0:02:58]} 8. Qf3 {[%clk 0:01:37]}  Be6 {[%clk 0:02:58]} 9. Nxe6 {[%clk 0:01:36]}  fxe6 {[%clk 0:02:59]} 10. O-O {[%clk 0:01:34]}  Qd7 {[%clk 0:02:23]} 11. Nd2 {[%clk 0:01:14]}  Qf7 {[%clk 0:02:18]} 12. Re1 {[%clk 0:01:08]}  Be7 {[%clk 0:01:48]} 13. Qxf7+ {[%clk 0:00:43]}  Kxf7 {[%clk 0:01:49]} 14. Nf3 {[%clk 0:00:41]}  Bf6 {[%clk 0:01:49]} 15. Bd2 {[%clk 0:00:40]}  Rad8 {[%clk 0:01:44]} 16. Re4 {[%clk 0:00:39]}  a6 {[%clk 0:01:35]} 17. Rae1 {[%clk 0:00:34]}  Rhe8 {[%clk 0:01:16]} 18. h4 {[%clk 0:00:28]}  h5 {[%clk 0:01:00]} 19. Bb3 {[%clk 0:00:20]}  b5 {[%clk 0:00:43]} 20. c4 {[%clk 0:00:19]}  bxc4 {[%clk 0:00:37]} 21. Bxc4 {[%clk 0:00:20]}  Ra8 {[%clk 0:00:27]} 22. a3 {[%clk 0:00:18]}  Rec8 {[%clk 0:00:25]} 23. Bd3 {[%clk 0:00:09]}  a5 {[%clk 0:00:20]} 24. Bb5 {[%clk 0:00:09]}  Rab8 {[%clk 0:00:20]} 25. a4 {[%clk 0:00:07]}  Nde7 {[%clk 0:00:17]} 26. g3 {[%clk 0:00:05]}  g6 {[%clk 0:00:15]} 27. Kg2 {[%clk 0:00:05]}  Nf5 {[%clk 0:00:12]} 28. Bg5 {[%clk 0:00:04]}  Bg7 {[%clk 0:00:11]} 29. R4e2 {[%clk 0:00:02]}  Nd6 {[%clk 0:00:10]} 30. Bxc6 {[%clk 0:00:02]}  Rxc6 {[%clk 0:00:11]} 31. Rxe5 {[%clk 0:00:03]}  Nc4 {[%clk 0:00:06]} 32. Rb5 {[%clk 0:00:03]}  Rxb5 {[%clk 0:00:05]} 33. axb5 {[%clk 0:00:04]}  Rb6 {[%clk 0:00:02]} 34. Rc1 {[%clk 0:00:04]}  Nxb2 {[%clk 0:00:02]} 35. Rc7+ {[%clk 0:00:05]}  Kg8 {[%clk 0:00:02]} 36. Rc8+ {[%clk 0:00:05]}  Kf7 {[%clk 0:00:03]} 37. Rc7+ {[%clk 0:00:06]}  Kg8 {[%clk 0:00:03]} 38. Rc8+ {[%clk 0:00:03]}  Kf7 {[%clk 0:00:03]} 39. Bd8 {[%clk 0:00:03]}  Rxb5 {[%clk 0:00:03]} 40. Ng5+ {[%clk 0:00:04]}  Ke8 {[%clk 0:00:02]} 41. Bxa5+ {[%clk 0:00:03]}  Kd7 {[%clk 0:00:02]} 42. Rc7+ {[%clk 0:00:03]}  Kd6 {[%clk 0:00:02]} 43. Rxg7 {[%clk 0:00:04]}  Rxa5 {[%clk 0:00:02]} 44. Rxg6 {[%clk 0:00:04]}  Kd7 {[%clk 0:00:01]} 45. Nxe6 {[%clk 0:00:04]} 1-0


[Site "https://www.chess.com"]

[Event "Titled Tuesday Blitz December 27 Late 2022"]
[White "Della Corte, Alessandro"]
[Black "Finkelstein, Alan"]
[WhiteFideId "813540"]
[BlackFideId "30950961"]
[WhiteElo "2160"]
[BlackElo "2152"]
[Result "1-0"]
[Round "09"]
[TimeControl "180+2"]
[Date "2022.12.27"]
[WhiteClock "0:00:32"]
[BlackClock "0:00:01"]

1. d4 {[%clk 0:03:00]}  d5 {[%clk 0:02:59]} 2. Nf3 {[%clk 0:03:00]}  Nf6 {[%clk 0:02:58]} 3. c4 {[%clk 0:03:01]}  c6 {[%clk 0:02:56]} 4. Nc3 {[%clk 0:03:00]}  dxc4 {[%clk 0:02:56]} 5. b3 {[%clk 0:02:59]}  cxb3 {[%clk 0:02:48]} 6. Qxb3 {[%clk 0:03:00]}  e6 {[%clk 0:02:45]} 7. e4 {[%clk 0:02:59]}  Be7 {[%clk 0:02:39]} 8. Bd3 {[%clk 0:02:57]}  O-O {[%clk 0:02:35]} 9. O-O {[%clk 0:02:54]}  c5 {[%clk 0:02:21]} 10. e5 {[%clk 0:02:38]}  Nd5 {[%clk 0:02:15]} 11. Nxd5 {[%clk 0:02:34]}  exd5 {[%clk 0:02:05]} 12. dxc5 {[%clk 0:02:29]}  Nc6 {[%clk 0:02:02]} 13. Bb2 {[%clk 0:02:13]}  Bg4 {[%clk 0:02:01]} 14. Nd4 {[%clk 0:01:46]}  Nxe5 {[%clk 0:01:58]} 15. Rfe1 {[%clk 0:01:16]}  Nxd3 {[%clk 0:01:43]} 16. Qxd3 {[%clk 0:01:17]}  Bxc5 {[%clk 0:01:38]} 17. Qg3 {[%clk 0:01:15]}  h5 {[%clk 0:00:48]} 18. h3 {[%clk 0:01:13]}  Qb6 {[%clk 0:00:23]} 19. Nb3 {[%clk 0:00:54]}  Bd6 {[%clk 0:00:23]} 20. Qc3 {[%clk 0:00:52]}  f6 {[%clk 0:00:20]} 21. hxg4 {[%clk 0:00:51]}  hxg4 {[%clk 0:00:18]} 22. Rad1 {[%clk 0:00:48]}  g3 {[%clk 0:00:17]} 23. Qd4 {[%clk 0:00:49]}  gxf2+ {[%clk 0:00:15]} 24. Kxf2 {[%clk 0:00:49]}  Rfd8 {[%clk 0:00:06]} 25. Qxb6 {[%clk 0:00:43]}  axb6 {[%clk 0:00:07]} 26. Bd4 {[%clk 0:00:38]}  Rxa2+ {[%clk 0:00:06]} 27. Rd2 {[%clk 0:00:33]}  Ra3 {[%clk 0:00:03]} 28. Rb1 {[%clk 0:00:32]}  Rc8 {[%clk 0:00:01]} 29. Bxb6 {[%clk 0:00:32]} 1-0


[Site "https://www.chess.com"]

[Event "Titled Tuesday Blitz December 27 Late 2022"]
[White "Denishev, Marat"]
[Black "Bogaudinov, Rushan"]
[WhiteFideId "24131563"]
[BlackFideId "4129288"]
[WhiteElo "2255"]
[BlackElo "1939"]
[Result "1-0"]
[Round "09"]
[TimeControl "180+2"]
[Date "2022.12.27"]
[WhiteClock "0:01:45"]
[BlackClock "0:00:11"]

1. d4 {[%clk 0:02:52]}  Nf6 {[%clk 0:02:59]} 2. Bg5 {[%clk 0:02:51]}  d5 {[%clk 0:02:55]} 3. Bxf6 {[%clk 0:02:50]}  exf6 {[%clk 0:02:51]} 4. g3 {[%clk 0:02:51]}  c6 {[%clk 0:02:51]} 5. Bg2 {[%clk 0:02:51]}  g6 {[%clk 0:02:46]} 6. e3 {[%clk 0:02:51]}  Bg7 {[%clk 0:02:46]} 7. Ne2 {[%clk 0:02:52]}  Bg4 {[%clk 0:02:39]} 8. O-O {[%clk 0:02:52]}  Bxe2 {[%clk 0:02:31]} 9. Qxe2 {[%clk 0:02:53]}  O-O {[%clk 0:02:31]} 10. Nd2 {[%clk 0:02:53]}  Nd7 {[%clk 0:02:24]} 11. c4 {[%clk 0:02:51]}  dxc4 {[%clk 0:02:23]} 12. Nxc4 {[%clk 0:02:50]}  Nb6 {[%clk 0:02:23]} 13. Rfc1 {[%clk 0:02:48]}  Nxc4 {[%clk 0:02:22]} 14. Qxc4 {[%clk 0:02:47]}  Qe7 {[%clk 0:02:18]} 15. b4 {[%clk 0:02:46]}  a6 {[%clk 0:02:16]} 16. a4 {[%clk 0:02:46]}  h5 {[%clk 0:01:49]} 17. Qc5 {[%clk 0:02:42]}  Qd7 {[%clk 0:01:23]} 18. b5 {[%clk 0:02:30]}  axb5 {[%clk 0:01:19]} 19. axb5 {[%clk 0:02:31]}  Rxa1 {[%clk 0:00:55]} 20. Rxa1 {[%clk 0:02:32]}  Rc8 {[%clk 0:00:46]} 21. b6 {[%clk 0:02:28]}  Bf8 {[%clk 0:00:45]} 22. Qc4 {[%clk 0:02:24]}  Qd8 {[%clk 0:00:35]} 23. Qb3 {[%clk 0:02:20]}  Ra8 {[%clk 0:00:31]} 24. Ra7 {[%clk 0:02:10]}  Rxa7 {[%clk 0:00:24]} 25. bxa7 {[%clk 0:02:11]}  Qa8 {[%clk 0:00:24]} 26. Qb6 {[%clk 0:02:06]}  Be7 {[%clk 0:00:24]} 27. d5 {[%clk 0:02:03]}  Bd8 {[%clk 0:00:22]} 28. Qc5 {[%clk 0:01:56]}  cxd5 {[%clk 0:00:14]} 29. Bxd5 {[%clk 0:01:55]}  Kg7 {[%clk 0:00:14]} 30. Qd6 {[%clk 0:01:47]}  Bb6 {[%clk 0:00:11]} 31. Qxb6 {[%clk 0:01:46]}  Qc8 {[%clk 0:00:11]} 32. Bxb7 {[%clk 0:01:45]} 1-0


[Site "https://www.chess.com"]

[Event "Titled Tuesday Blitz December 27 Late 2022"]
[White "Diaz Herquinio, Brahian"]
[Black "Bouget, Alexandre"]
[WhiteFideId "3809480"]
[BlackFideId "681318"]
[WhiteElo "2051"]
[BlackElo "2267"]
[Result "0-1"]
[Round "09"]
[TimeControl "180+2"]
[Date "2022.12.27"]
[WhiteClock "0:00:24"]
[BlackClock "0:00:07"]

1. e4 {[%clk 0:02:59]}  e6 {[%clk 0:02:59]} 2. d4 {[%clk 0:02:59]}  d5 {[%clk 0:02:59]} 3. Nc3 {[%clk 0:03:00]}  Bb4 {[%clk 0:02:56]} 4. e5 {[%clk 0:02:59]}  c5 {[%clk 0:02:55]} 5. a3 {[%clk 0:03:00]}  Bxc3+ {[%clk 0:02:54]} 6. bxc3 {[%clk 0:03:01]}  Qa5 {[%clk 0:02:54]} 7. h4 {[%clk 0:02:55]}  Qa4 {[%clk 0:02:52]} 8. Rb1 {[%clk 0:02:50]}  Nc6 {[%clk 0:02:48]} 9. Nf3 {[%clk 0:02:46]}  Nge7 {[%clk 0:02:39]} 10. h5 {[%clk 0:02:45]}  h6 {[%clk 0:02:38]} 11. Rh4 {[%clk 0:02:27]}  Nf5 {[%clk 0:02:37]} 12. Rf4 {[%clk 0:02:26]}  c4 {[%clk 0:02:29]} 13. g4 {[%clk 0:02:22]}  Nfe7 {[%clk 0:02:25]} 14. Nh4 {[%clk 0:02:12]}  b6 {[%clk 0:02:23]} 15. Rb2 {[%clk 0:02:06]}  Qxa3 {[%clk 0:02:19]} 16. Rxb6 {[%clk 0:01:40]}  Qxc3+ {[%clk 0:02:15]} 17. Bd2 {[%clk 0:01:39]}  Qa3 {[%clk 0:01:55]} 18. Rb1 {[%clk 0:01:31]}  Bd7 {[%clk 0:01:44]} 19. Qf3 {[%clk 0:01:27]}  Qxf3 {[%clk 0:01:39]} 20. Rxf3 {[%clk 0:01:27]}  Nxd4 {[%clk 0:01:38]} 21. Rf4 {[%clk 0:01:23]}  Nxc2+ {[%clk 0:01:14]} 22. Kd1 {[%clk 0:01:23]}  Na3 {[%clk 0:01:13]} 23. Ra1 {[%clk 0:01:24]}  Nb5 {[%clk 0:01:12]} 24. Bb4 {[%clk 0:01:21]}  Nc6 {[%clk 0:01:07]} 25. Bc5 {[%clk 0:01:21]}  Nxe5 {[%clk 0:01:03]} 26. Nf3 {[%clk 0:01:17]}  Nxf3 {[%clk 0:00:57]} 27. Rxf3 {[%clk 0:01:18]}  e5 {[%clk 0:00:55]} 28. Bh3 {[%clk 0:01:15]}  d4 {[%clk 0:00:53]} 29. Ra6 {[%clk 0:01:12]}  O-O-O {[%clk 0:00:47]} 30. Rxf7 {[%clk 0:01:08]}  Kb7 {[%clk 0:00:39]} 31. Ra5 {[%clk 0:01:04]}  Kc6 {[%clk 0:00:32]} 32. Bxa7 {[%clk 0:01:01]}  Nc3+ {[%clk 0:00:21]} 33. Ke1 {[%clk 0:00:57]}  Be6 {[%clk 0:00:14]} 34. Bg2+ {[%clk 0:00:54]}  Bd5 {[%clk 0:00:14]} 35. Rc5+ {[%clk 0:00:48]}  Kd6 {[%clk 0:00:12]} 36. Bxd5 {[%clk 0:00:41]}  Nxd5 {[%clk 0:00:13]} 37. Rxc4 {[%clk 0:00:38]}  Rd7 {[%clk 0:00:10]} 38. Bc5+ {[%clk 0:00:30]}  Ke6 {[%clk 0:00:09]} 39. Rf5 {[%clk 0:00:29]}  Rc8 {[%clk 0:00:08]} 40. f4 {[%clk 0:00:18]}  Nxf4 {[%clk 0:00:05]} 41. Rxe5+ {[%clk 0:00:18]}  Kxe5 {[%clk 0:00:04]} 42. Bxd4+ {[%clk 0:00:18]}  Rxd4 {[%clk 0:00:04]} 43. Rxc8 {[%clk 0:00:19]}  Nd3+ {[%clk 0:00:03]} 44. Ke2 {[%clk 0:00:20]}  Nf4+ {[%clk 0:00:03]} 45. Kf3 {[%clk 0:00:20]}  Ne6 {[%clk 0:00:04]} 46. Ra8 {[%clk 0:00:20]}  Rd3+ {[%clk 0:00:04]} 47. Ke2 {[%clk 0:00:20]}  Rd4 {[%clk 0:00:04]} 48. Ra5+ {[%clk 0:00:20]}  Rd5 {[%clk 0:00:04]} 49. Ra6 {[%clk 0:00:21]}  Kf6 {[%clk 0:00:04]} 50. Kf3 {[%clk 0:00:21]}  Rd4 {[%clk 0:00:04]} 51. Ke3 {[%clk 0:00:21]}  Rxg4 {[%clk 0:00:04]} 52. Kf3 {[%clk 0:00:22]}  Rg5 {[%clk 0:00:05]} 53. Ke4 {[%clk 0:00:22]}  Rxh5 {[%clk 0:00:05]} 54. Kf3 {[%clk 0:00:23]}  Rf5+ {[%clk 0:00:06]} 55. Kg4 {[%clk 0:00:23]}  g5 {[%clk 0:00:05]} 56. Rb6 {[%clk 0:00:24]}  Rf4+ {[%clk 0:00:06]} 57. Kh5 {[%clk 0:00:24]}  Rh4# {[%clk 0:00:07]} 0-1


[Site "https://www.chess.com"]

[Event "Titled Tuesday Blitz December 27 Late 2022"]
[White "Fishbein, Alexander"]
[Black "Garcia Cuenca, Victor"]
[WhiteFideId "2000377"]
[BlackFideId "2250829"]
[WhiteElo "2366"]
[BlackElo "2324"]
[Result "1-0"]
[Round "09"]
[TimeControl "180+2"]
[Date "2022.12.27"]
[WhiteClock "0:00:13"]
[BlackClock "0:00:02"]

1. e4 {[%clk 0:02:59]}  c5 {[%clk 0:02:59]} 2. Nf3 {[%clk 0:02:58]}  e6 {[%clk 0:02:59]} 3. d4 {[%clk 0:02:57]}  cxd4 {[%clk 0:02:59]} 4. Nxd4 {[%clk 0:02:57]}  Nf6 {[%clk 0:03:00]} 5. Nc3 {[%clk 0:02:57]}  d6 {[%clk 0:03:00]} 6. g4 {[%clk 0:02:55]}  h6 {[%clk 0:03:00]} 7. h4 {[%clk 0:02:52]}  Nc6 {[%clk 0:03:01]} 8. Bg2 {[%clk 0:02:51]}  h5 {[%clk 0:03:01]} 9. g5 {[%clk 0:02:50]}  Ng4 {[%clk 0:02:56]} 10. Nxc6 {[%clk 0:02:48]}  bxc6 {[%clk 0:02:55]} 11. Bf4 {[%clk 0:02:39]}  Qb6 {[%clk 0:02:51]} 12. Qd2 {[%clk 0:02:36]}  Qxb2 {[%clk 0:02:15]} 13. Rb1 {[%clk 0:02:35]}  Qa3 {[%clk 0:02:15]} 14. O-O {[%clk 0:02:30]}  Ne5 {[%clk 0:02:02]} 15. Rfd1 {[%clk 0:02:16]}  Be7 {[%clk 0:01:56]} 16. Rb3 {[%clk 0:02:09]}  Qa5 {[%clk 0:01:54]} 17. Bg3 {[%clk 0:02:00]}  Ba6 {[%clk 0:01:39]} 18. a4 {[%clk 0:01:24]}  Qc7 {[%clk 0:01:36]} 19. f4 {[%clk 0:01:18]}  Ng4 {[%clk 0:01:27]} 20. f5 {[%clk 0:01:10]}  Ne5 {[%clk 0:01:25]} 21. Qf2 {[%clk 0:01:03]}  g6 {[%clk 0:01:05]} 22. Bxe5 {[%clk 0:01:01]}  dxe5 {[%clk 0:01:03]} 23. fxe6 {[%clk 0:01:01]}  fxe6 {[%clk 0:00:48]} 24. Kh2 {[%clk 0:01:00]}  Rf8 {[%clk 0:00:45]} 25. Qg3 {[%clk 0:00:58]}  Rf4 {[%clk 0:00:46]} 26. Bh3 {[%clk 0:00:46]}  Kf7 {[%clk 0:00:44]} 27. Rd2 {[%clk 0:00:36]}  Bc5 {[%clk 0:00:41]} 28. Rb1 {[%clk 0:00:32]}  Rd8 {[%clk 0:00:29]} 29. Rbd1 {[%clk 0:00:30]}  Rxd2+ {[%clk 0:00:28]} 30. Rxd2 {[%clk 0:00:30]}  Bd4 {[%clk 0:00:26]} 31. Nd1 {[%clk 0:00:24]}  Qa5 {[%clk 0:00:19]} 32. c3 {[%clk 0:00:23]}  Bc5 {[%clk 0:00:18]} 33. Rd7+ {[%clk 0:00:21]}  Be7 {[%clk 0:00:19]} 34. Qe3 {[%clk 0:00:17]}  Qxa4 {[%clk 0:00:16]} 35. Qxa7 {[%clk 0:00:14]}  Qc2+ {[%clk 0:00:13]} 36. Bg2 {[%clk 0:00:14]}  Rxh4+ {[%clk 0:00:12]} 37. Kg1 {[%clk 0:00:13]}  Qxg2+ {[%clk 0:00:01]} 38. Kxg2 {[%clk 0:00:13]}  Rg4+ {[%clk 0:00:02]} 39. Kf2 {[%clk 0:00:13]} 1-0


[Site "https://www.chess.com"]

[Event "Titled Tuesday Blitz December 27 Late 2022"]
[White "Gatterer, Florian"]
[Black "Araujo, Everson De Moura"]
[WhiteFideId "811688"]
[BlackFideId "22737197"]
[WhiteElo "2170"]
[BlackElo "1944"]
[Result "0-1"]
[Round "09"]
[TimeControl "180+2"]
[Date "2022.12.27"]
[WhiteClock "0:01:38"]
[BlackClock "0:02:01"]

1. b3 {[%clk 0:03:00]}  d5 {[%clk 0:02:52]} 2. Nf3 {[%clk 0:03:00]}  Nf6 {[%clk 0:02:51]} 3. Bb2 {[%clk 0:03:00]}  Bf5 {[%clk 0:02:51]} 4. g3 {[%clk 0:02:58]}  e6 {[%clk 0:02:50]} 5. Bg2 {[%clk 0:02:58]}  Be7 {[%clk 0:02:49]} 6. O-O {[%clk 0:02:57]}  O-O {[%clk 0:02:48]} 7. d3 {[%clk 0:02:58]}  h6 {[%clk 0:02:47]} 8. Nbd2 {[%clk 0:02:57]}  Bg6 {[%clk 0:02:36]} 9. e4 {[%clk 0:02:55]}  dxe4 {[%clk 0:02:32]} 10. Ne5 {[%clk 0:02:55]}  exd3 {[%clk 0:02:29]} 11. Nxg6 {[%clk 0:02:51]}  fxg6 {[%clk 0:02:25]} 12. Bxb7 {[%clk 0:02:50]}  dxc2 {[%clk 0:02:20]} 13. Qxc2 {[%clk 0:02:48]}  Nbd7 {[%clk 0:02:21]} 14. Bxa8 {[%clk 0:02:45]}  Qxa8 {[%clk 0:02:22]} 15. Qxg6 {[%clk 0:02:30]}  Rd8 {[%clk 0:02:07]} 16. Rad1 {[%clk 0:02:06]}  Nf8 {[%clk 0:02:06]} 17. Qc2 {[%clk 0:02:00]}  N8h7 {[%clk 0:02:05]} 18. Nc4 {[%clk 0:01:57]}  Ng5 {[%clk 0:02:04]} 19. Rxd8+ {[%clk 0:01:47]}  Bxd8 {[%clk 0:02:03]} 20. f4 {[%clk 0:01:38]}  Nh3# {[%clk 0:02:01]} 0-1


[Site "https://www.chess.com"]

[Event "Titled Tuesday Blitz December 27 Late 2022"]
[White "Guevara Sanchez, Erick Marvin"]
[Black "Can, Melih Kaan"]
[WhiteFideId "6700136"]
[BlackFideId "6317383"]
[WhiteElo "2073"]
[BlackElo "2069"]
[Result "0-1"]
[Round "09"]
[TimeControl "180+2"]
[Date "2022.12.27"]
[WhiteClock "0:00:20"]
[BlackClock "0:00:47"]

1. e4 {[%clk 0:03:00]}  e5 {[%clk 0:02:47]} 2. Nf3 {[%clk 0:03:00]}  Nc6 {[%clk 0:02:47]} 3. Bc4 {[%clk 0:03:00]}  Nf6 {[%clk 0:02:46]} 4. d3 {[%clk 0:02:59]}  Bc5 {[%clk 0:02:47]} 5. O-O {[%clk 0:02:58]}  d6 {[%clk 0:02:47]} 6. c3 {[%clk 0:02:58]}  a6 {[%clk 0:02:46]} 7. Nbd2 {[%clk 0:02:56]}  Ba7 {[%clk 0:02:46]} 8. Bb3 {[%clk 0:02:54]}  h6 {[%clk 0:02:45]} 9. Re1 {[%clk 0:02:44]}  Be6 {[%clk 0:02:45]} 10. Nf1 {[%clk 0:02:42]}  Qd7 {[%clk 0:02:41]} 11. Ng3 {[%clk 0:02:32]}  O-O {[%clk 0:02:41]} 12. Nh4 {[%clk 0:02:19]}  d5 {[%clk 0:02:36]} 13. Qe2 {[%clk 0:02:10]}  Bg4 {[%clk 0:02:33]} 14. Qf1 {[%clk 0:01:58]}  d4 {[%clk 0:02:32]} 15. h3 {[%clk 0:01:56]}  Be6 {[%clk 0:02:30]} 16. Nhf5 {[%clk 0:01:54]}  Rfd8 {[%clk 0:02:30]} 17. Qe2 {[%clk 0:01:53]}  dxc3 {[%clk 0:02:30]} 18. Bc2 {[%clk 0:01:19]}  cxb2 {[%clk 0:02:13]} 19. Bxb2 {[%clk 0:01:20]}  Nd4 {[%clk 0:02:12]} 20. Nxd4 {[%clk 0:01:18]}  Bxd4 {[%clk 0:02:12]} 21. Bxd4 {[%clk 0:01:17]}  Qxd4 {[%clk 0:02:13]} 22. Rad1 {[%clk 0:01:16]}  c5 {[%clk 0:02:11]} 23. Bb3 {[%clk 0:01:15]}  b5 {[%clk 0:02:09]} 24. Nf5 {[%clk 0:01:13]}  Bxf5 {[%clk 0:02:08]} 25. exf5 {[%clk 0:01:12]}  Re8 {[%clk 0:02:06]} 26. Qf3 {[%clk 0:01:01]}  Rad8 {[%clk 0:02:05]} 27. g4 {[%clk 0:00:58]}  Qf4 {[%clk 0:02:01]} 28. Qg2 {[%clk 0:00:54]}  c4 {[%clk 0:02:00]} 29. dxc4 {[%clk 0:00:50]}  bxc4 {[%clk 0:02:01]} 30. Bc2 {[%clk 0:00:47]}  c3 {[%clk 0:02:02]} 31. Qg3 {[%clk 0:00:35]}  Qxg3+ {[%clk 0:01:55]} 32. fxg3 {[%clk 0:00:36]}  Rd2 {[%clk 0:01:55]} 33. Rxd2 {[%clk 0:00:36]}  cxd2 {[%clk 0:01:55]} 34. Rd1 {[%clk 0:00:35]}  Rd8 {[%clk 0:01:56]} 35. Kf2 {[%clk 0:00:35]}  Rd4 {[%clk 0:01:41]} 36. Ke2 {[%clk 0:00:32]}  Nd5 {[%clk 0:01:42]} 37. Rxd2 {[%clk 0:00:29]}  Nc3+ {[%clk 0:01:42]} 38. Ke1 {[%clk 0:00:28]}  Rxd2 {[%clk 0:01:37]} 39. Kxd2 {[%clk 0:00:29]}  Nxa2 {[%clk 0:01:37]} 40. Kd3 {[%clk 0:00:26]}  Nb4+ {[%clk 0:01:38]} 41. Kc3 {[%clk 0:00:25]}  Nxc2 {[%clk 0:01:37]} 42. Kxc2 {[%clk 0:00:26]}  f6 {[%clk 0:01:34]} 43. h4 {[%clk 0:00:26]}  Kf7 {[%clk 0:01:34]} 44. Kd3 {[%clk 0:00:25]}  Ke7 {[%clk 0:01:33]} 45. Kc4 {[%clk 0:00:22]}  Kd6 {[%clk 0:01:33]} 46. g5 {[%clk 0:00:22]}  hxg5 {[%clk 0:01:16]} 47. hxg5 {[%clk 0:00:20]}  fxg5 {[%clk 0:01:17]} 48. g4 {[%clk 0:00:20]}  a5 {[%clk 0:01:12]} 49. Kb5 {[%clk 0:00:19]}  e4 {[%clk 0:01:12]} 50. Kxa5 {[%clk 0:00:20]}  e3 {[%clk 0:01:13]} 51. Kb4 {[%clk 0:00:20]}  e2 {[%clk 0:01:13]} 52. Kc3 {[%clk 0:00:21]}  e1=Q+ {[%clk 0:01:13]} 53. Kc2 {[%clk 0:00:20]}  Qe3 {[%clk 0:01:05]} 54. Kd1 {[%clk 0:00:18]}  Qf2 {[%clk 0:01:04]} 55. f6 {[%clk 0:00:18]}  gxf6 {[%clk 0:01:03]} 56. Kc1 {[%clk 0:00:17]}  Kc5 {[%clk 0:00:59]} 57. Kb1 {[%clk 0:00:18]}  Kc4 {[%clk 0:00:58]} 58. Ka1 {[%clk 0:00:19]}  Kb3 {[%clk 0:00:58]} 59. Kb1 {[%clk 0:00:20]}  Qf1# {[%clk 0:00:47]} 0-1


[Site "https://www.chess.com"]

[Event "Titled Tuesday Blitz December 27 Late 2022"]
[White "Jaracz, Pawel"]
[Black "Rustemov, Alexander"]
[WhiteFideId "1102222"]
[BlackFideId "4119002"]
[WhiteElo "2467"]
[BlackElo "2525"]
[Result "1-0"]
[Round "09"]
[TimeControl "180+2"]
[Date "2022.12.27"]
[WhiteClock "0:00:07"]
[BlackClock "0:00:01"]

1. e4 {[%clk 0:03:00]}  e6 {[%clk 0:03:00]} 2. d3 {[%clk 0:03:00]}  c5 {[%clk 0:02:59]} 3. Nd2 {[%clk 0:02:57]}  Nc6 {[%clk 0:02:59]} 4. Ngf3 {[%clk 0:02:57]}  g6 {[%clk 0:02:57]} 5. g3 {[%clk 0:02:51]}  Bg7 {[%clk 0:02:57]} 6. Bg2 {[%clk 0:02:51]}  Nge7 {[%clk 0:02:57]} 7. O-O {[%clk 0:02:51]}  O-O {[%clk 0:02:57]} 8. Re1 {[%clk 0:02:51]}  d6 {[%clk 0:02:56]} 9. c3 {[%clk 0:02:49]}  e5 {[%clk 0:02:54]} 10. Nc4 {[%clk 0:02:46]}  h6 {[%clk 0:02:50]} 11. a4 {[%clk 0:02:44]}  Bg4 {[%clk 0:02:46]} 12. h3 {[%clk 0:02:42]}  Be6 {[%clk 0:02:45]} 13. Nfd2 {[%clk 0:02:07]}  Qd7 {[%clk 0:02:45]} 14. Kh2 {[%clk 0:02:06]}  b6 {[%clk 0:02:40]} 15. Na3 {[%clk 0:01:58]}  Rad8 {[%clk 0:02:38]} 16. Ndc4 {[%clk 0:01:58]}  d5 {[%clk 0:02:36]} 17. Nd2 {[%clk 0:01:35]}  f5 {[%clk 0:02:32]} 18. exd5 {[%clk 0:01:35]}  Bxd5 {[%clk 0:02:32]} 19. Bf1 {[%clk 0:01:33]}  g5 {[%clk 0:02:25]} 20. Nac4 {[%clk 0:01:31]}  Ng6 {[%clk 0:02:24]} 21. Qh5 {[%clk 0:01:22]}  Bf7 {[%clk 0:02:19]} 22. Qe2 {[%clk 0:01:21]}  Rfe8 {[%clk 0:01:56]} 23. Bg2 {[%clk 0:01:18]}  Bd5 {[%clk 0:01:52]} 24. Bf1 {[%clk 0:01:10]}  e4 {[%clk 0:01:44]} 25. dxe4 {[%clk 0:01:09]}  fxe4 {[%clk 0:01:43]} 26. Ne3 {[%clk 0:01:07]}  Bf7 {[%clk 0:01:40]} 27. Bg2 {[%clk 0:01:06]}  Nce5 {[%clk 0:01:21]} 28. Nxe4 {[%clk 0:01:04]}  Nd3 {[%clk 0:01:18]} 29. Rd1 {[%clk 0:01:02]}  c4 {[%clk 0:01:18]} 30. Ng4 {[%clk 0:00:48]}  Kh8 {[%clk 0:01:12]} 31. Be3 {[%clk 0:00:43]}  Qe7 {[%clk 0:01:06]} 32. Bd4 {[%clk 0:00:36]}  Bd5 {[%clk 0:00:59]} 33. Ngf6 {[%clk 0:00:34]}  Bxe4 {[%clk 0:00:55]} 34. Qxe4 {[%clk 0:00:19]}  Qxe4 {[%clk 0:00:55]} 35. Bxe4 {[%clk 0:00:18]}  Rxe4 {[%clk 0:00:23]} 36. Nxe4 {[%clk 0:00:17]}  Bxd4 {[%clk 0:00:24]} 37. cxd4 {[%clk 0:00:17]}  Rxd4 {[%clk 0:00:24]} 38. f3 {[%clk 0:00:14]}  Nge5 {[%clk 0:00:22]} 39. Kg2 {[%clk 0:00:14]}  a6 {[%clk 0:00:22]} 40. Rd2 {[%clk 0:00:13]}  Kg7 {[%clk 0:00:22]} 41. Nf2 {[%clk 0:00:11]}  Kf6 {[%clk 0:00:18]} 42. Rad1 {[%clk 0:00:09]}  b5 {[%clk 0:00:17]} 43. axb5 {[%clk 0:00:08]}  axb5 {[%clk 0:00:18]} 44. b3 {[%clk 0:00:08]}  Ke6 {[%clk 0:00:15]} 45. bxc4 {[%clk 0:00:08]}  bxc4 {[%clk 0:00:16]} 46. Ne4 {[%clk 0:00:09]}  Kd5 {[%clk 0:00:14]} 47. Ra2 {[%clk 0:00:07]}  Nf4+ {[%clk 0:00:12]} 48. gxf4 {[%clk 0:00:07]}  Rxd1 {[%clk 0:00:12]} 49. Nc3+ {[%clk 0:00:08]}  Kd4 {[%clk 0:00:10]} 50. Nxd1 {[%clk 0:00:08]}  gxf4 {[%clk 0:00:11]} 51. Re2 {[%clk 0:00:08]}  Nd3 {[%clk 0:00:09]} 52. Re4+ {[%clk 0:00:08]}  Kc5 {[%clk 0:00:06]} 53. Nc3 {[%clk 0:00:09]}  Kb4 {[%clk 0:00:04]} 54. Nd5+ {[%clk 0:00:09]}  Kb3 {[%clk 0:00:05]} 55. Nxf4 {[%clk 0:00:09]}  Nc5 {[%clk 0:00:02]} 56. Re3+ {[%clk 0:00:07]}  c3 {[%clk 0:00:03]} 57. Ne2 {[%clk 0:00:08]}  Na4 {[%clk 0:00:02]} 58. f4 {[%clk 0:00:07]}  Kc4 {[%clk 0:00:02]} 59. Nxc3 {[%clk 0:00:07]}  Nc5 {[%clk 0:00:02]} 60. Ne2 {[%clk 0:00:07]}  Kd5 {[%clk 0:00:01]} 61. Kf3 {[%clk 0:00:07]}  Nd7 {[%clk 0:00:01]} 62. Rd3+ {[%clk 0:00:07]} 1-0


[Site "https://www.chess.com"]